Workbook

Sheet 1
B1: Dochody budżetu gminy na 2008 r.
F3: w złotych
A4: Dział | B4: Rozdział* | C4: § | D4: Źródło dochodów | E4: Planowane dochody na 2008 r
E5: Ogółem | F5: w tym :
F6: bieżące | G6: majątkowe
A7: 1 | B7: 2 | C7: 3 | D7: 4 | E7: 5 | F7: 6 | G7: 7
A8: 010 | D8: Rolnictwo i łowiectwo | E8: =E9+E11 -> 52850 | F8: =F9+F11 -> 52850 | G8: =G9+G11 -> 0
B9: 01010 | D9: Infrastruktura wodociągowa i sanitacyjna wsi | E9: =SUM(E10) -> 50000 | F9: =SUM(F10) -> 50000 | G9: =SUM(G10) -> 0
C10: 6290 | D10: Środki na dofinansowanie własnych inwestycji gmin( związków gmin), powiatów(związków powiatów), samorządów województw, pozyskane z innych źródeł | E10: 50000 | F10: 50000
B11: 01095 | D11: Pozostała działalność | E11: =SUM(E12) -> 2850 | F11: =SUM(F12) -> 2850 | G11: =SUM(G12) -> 0
C12: 0750 | D12: Dochody z najmu i dzierżawy składników majątkowych Skarbu Państwa, jednostek samorządu terytorialnego lub innych jednostek zaliczanych do sektora finansów publicznych oraz umów o podobnym charakterze | E12: 2850 | F12: 2850 | G12: 0
A13: 600 | D13: Transport i łączność | E13: =E14 -> 15192 | F13: =F14 -> 15192 | G13: =G14 -> 0
B14: 60014 | D14: Drogi publiczne powiatowe | E14: =SUM(E15:E16) -> 15192 | F14: =SUM(F15:F16) -> 15192 | G14: =SUM(G15:G16) -> 0
C15: 2320 | D15: Dotacje celowe otrzymane z powiatu na zadania bieżące realizowane na podstawie porozumień(umów) między jst | E15: 15192 | F15: 15192
C16: 6300 | D16: Wpływy z tytułu pomocy finansowej udzielanej między jednostkami samorządu terytorialnego na dofinansowanie własnych zadań inwestycyjnych i zakupów inwestycyjnych
A17: 700 | D17: Gospodarka mieszkaniowa | E17: =E18 -> 198448 | F17: =F18 -> 100448 | G17: =G18 -> 98000
B18: 70005 | D18: Gospodarka gruntami i nieruchomościami | E18: =SUM(E19:E24) -> 198448 | F18: =SUM(F19:F24) -> 100448 | G18: =SUM(G19:G24) -> 98000
C19: 0470 | D19: Wpływy z opłat za zarząd, użytkowanie i użytkowanie wieczyste nieruchomości | E19: 8156 | F19: 8156
C20: 0690 | D20: Wpływy z różnych opłat | E20: 0
C21: 0750 | D21: Dochody z najmu i dzierżawy składników majątkowych Skarbu Państwa, jednostek samorządu terytorialnego lub innych jednostek zaliczanych do sektora finansów publicznych oraz umów o podobnym charakterze | E21: 83792 | F21: 83792
C22: 0770 | D22: Wpłaty z tytułu odpłatnego nabycia prawa własności oraz prawa użytkowania wieczystego nieruchomości | E22: 98000 | G22: 98000
C23: 0830 | D23: Wpływy z usług | E23: 8000 | F23: 8000
C24: 0920 | D24: Pozostałe odsetki | E24: 500 | F24: 500
A25: 750 | D25: Administracja publiczna | E25: =E26+E29 -> 76111 | F25: =F26+F29 -> 76111 | G25: =G26+G29 -> 0
B26: 75011 | D26: Urzędy wojewódzkie | E26: =SUM(E27:E28) -> 70611 | F26: =SUM(F27:F28) -> 70611 | G26: =SUM(G27:G28) -> 0
C27: 2010 | D27: Dotacje celowe otrzymane z budżetu państwa na realizację zadań bieżących z zakresu administracji rządowej oraz innych zadań zleconych gminie(związkom gmin) ustawami | E27: 68611 | F27: 68611
C28: 2360 | D28: Dochody jednostek samorządu terytorialnego związane z realizacją zadań z zakresu administracji rządowej oraz innych zadań zleconych ustawami | E28: 2000 | F28: 2000
B29: 75023 | D29: Urzędy gmin(miast i miast na prawach pow.) | E29: =SUM(E30:E32) -> 5500 | F29: =SUM(F30:F32) -> 5500 | G29: =SUM(G30:G32) -> 0
C30: 0690 | D30: Wpływy z różnych opłat | E30: 2500 | F30: 2500
C31: 0830 | D31: Wpływy z usług | E31: 2000 | F31: 2000
C32: 0970 | D32: Wpływy z różnych dochodów | E32: 1000 | F32: 1000
A33: 751 | D33: Urzędy naczelnych organów władzypaństwowej, kontroli i ochrony prawa oraz sądownictwa | E33: =E34 -> 1037 | F33: =F34 -> 1037 | G33: =G34 -> 0
B34: 75101 | D34: Urzędy naczelnych organów władzypaństwowej, kontroli i ochrony prawa | E34: =SUM(E35) -> 1037 | F34: =SUM(F35) -> 1037 | G34: =SUM(G35) -> 0
C35: 2010 | D35: Dotacje celowe otrzymane z budżetu państwa na realizację zadań bieżących z zakresu administracji rządowej oraz innych zadań zleconych gminie(związkom gmin) ustawami | E35: 1037 | F35: 1037
A36: 754 | D36: Bezpieczeństwo publiczne i ochrona przeciwpożarowa | E36: =E37 -> 600 | F36: =F37 -> 600 | G36: =G37 -> 0
B37: 75414 | D37: Obrona cywilna | E37: =SUM(E38) -> 600 | F37: =SUM(F38) -> 600 | G37: =SUM(G38) -> 0
C38: 2010 | D38: Dotacje celowe otrzymane z budżetu państwa na realizację zadań bieżących z zakresu administracji rządowej oraz innych zadań zleconych gminie(związkom gmin) ustawami | E38: 600 | F38: 600
A39: 756 | D39: Dochody od osób prawnych, od osób fizycznych i od in nych jrednostek nieposiadających osobowości prawnej oraz wydatki związane z ich poborem | E39: =E40+E42+E47+E56+E63 -> 2718381 | F39: =F40+F42+F47+F56+F63 -> 2718381 | G39: =G40+G42+G47+G56+G63 -> 0
B40: 75601 | D40: Wpływy z podatku dochodowego od osób fizycznych | E40: =SUM(E41) -> 1500 | F40: =SUM(F41) -> 1500 | G40: =SUM(G41) -> 0
C41: 0350 | D41: Podatek od działalnosci gospodarczej osób fizycznych opłacany w formie karty podatkowej | E41: 1500 | F41: 1500
B42: 75615 | D42: Wpływy z podatku rolnego, podatku leśnego,podatku od czynności cywilnoprawnych, podatku od spadków i darowizn oraz podatków i opłat lokalnych od osób prawnych i innych jenostek organizacyjnych | E42: =SUM(E43:E46) -> 587942 | F42: =SUM(F43:F46) -> 587942 | G42: =SUM(G43:G46) -> 0
C43: 0310 | D43: Podatek od nieruchomości | E43: 577800 | F43: 577800
C44: 0320 | D44: Podatek rolny | E44: 759 | F44: 759
C45: 0330 | D45: Podatek leśny | E45: 8883 | F45: 8883
C46: 0910 | D46: Odsetki od nieterminowych wpłat z tytułu podatków i opłat | E46: 500 | F46: 500
B47: 75616 | D47: Wpływy z podatku rolnego, podatku leśnego, podatku od spadków i darowizn, podatku od czynności cywilnoprawnych oraz podatków i opłat lokalnych od osób fizycznych | E47: =SUM(E48:E55) -> 917738 | F47: =SUM(F48:F55) -> 917738 | G47: =SUM(G48:G55) -> 0
C48: 0310 | D48: Podatek od nieruchomości | E48: 154500 | F48: 154500
C49: 0320 | D49: Podatek rolny | E49: 554938 | F49: 554938
C50: 0330 | D50: Podatek leśny | E50: 71500 | F50: 71500
C51: 0340 | D51: Podatek od środków transportowych | E51: 61800 | F51: 61800
C52: 0360 | D52: Podatek od spadków i darowizn | E52: 6000 | F52: 6000
C53: 0430 | D53: Wpływy z opłaty targowej | E53: 5500 | F53: 5500
C54: 0500 | D54: Podatek od czynności cywilnoprawnych | E54: 53500 | F54: 53500
C55: 0910 | D55: Odsetki od nieterminowych wpłat z tytułu podatków i opłat | E55: 10000 | F55: 10000
B56: 75618 | D56: Wpływy z innych opłat stanowiących dochody jednostek samorządu terytorialnego na podstawie ustaw | E56: =SUM(E57:E62) -> 63200 | F56: =SUM(F57:F62) -> 63200 | G56: =SUM(G57:G62) -> 0
C57: 0400 | D57: Wpływy z opłaty produktowej | E57: 500 | F57: 500
C58: 0410 | D58: Wpływy z opłaty skarbowej | E58: 27000 | F58: 27000
C59: 0460 | D59: Wpływy z opłaty eksploatacyjnej | E59: 4000 | F59: 4000
C60: 0480 | D60: Wpływy z opłat zawydawanie zezwoleń na sprzedaż alkoholu | E60: 28700 | F60: 28700
C61: 0490 | D61: Wpływy z innych lokalnych opłat pobieranych przez jednostki samorządu terytorialnego na podstawie odrębnych ustaw | E61: 3000 | F61: 3000
C62: 0910 | D62: Odsetki od nieterminowych wpłat z tytułu podatków i opłat
B63: 75621 | D63: Udziały gmin w podatkach stanowiących dochód budżetu państwa | E63: =SUM(E64:E65) -> 1148001 | F63: =SUM(F64:F65) -> 1148001 | G63: =SUM(G64:G65) -> 0
C64: 0010 | D64: Podatek dochodowy od osób fizycznych | E64: 1141501 | F64: 1141501
C65: 0020 | D65: Podatek dochodowy od osób prawnych | E65: 6500 | F65: 6500
A66: 758 | D66: Różne rozliczenia | E66: =E67+E69+E71 -> 6583100 | F66: =F67+F69+F71 -> 6583100 | G66: =G67+G69+G71 -> 0
B67: 75801 | D67: Część oświatowa subwencji ogólnej dla jednostek samorządu terytorialnego | E67: =SUM(E68) -> 3776348 | F67: =SUM(F68) -> 3776348 | G67: =SUM(G68) -> 0
C68: 2920 | D68: Subwencje ogólne z budźetu państwa | E68: 3776348 | F68: 3776348
B69: 75807 | D69: Część wyrównawcza subwencji ogólnej dla gmin | E69: =SUM(E70) -> 2796752 | F69: =SUM(F70) -> 2796752 | G69: =SUM(G70) -> 0
C70: 2920 | D70: Subwencje ogólne z budżetu państwa | E70: 2796752 | F70: 2796752
B71: 75814 | D71: Różne rozliczenia finansowe | E71: =SUM(E72) -> 10000 | F71: =SUM(F72) -> 10000 | G71: =SUM(G72) -> 0
C72: 0920 | D72: Pozostałe odsetki | E72: 10000 | F72: 10000
A73: 801 | D73: Oświata i wychowanie | E73: =E74+E76+E78 -> 41081 | F73: =F74+F76+F78 -> 41081 | G73: =G74+G76+G78 -> 0
B74: 80101 | D74: Szkoły podstawowe | E74: =SUM(E75) -> 1000 | F74: =SUM(F75) -> 1000 | G74: =SUM(G75) -> 0
C75: 0920 | D75: Pozostałe odsetki | E75: 1000 | F75: 1000
B76: 80104 | D76: Przedszkola | E76: =SUM(E77) -> 32000 | F76: =SUM(F77) -> 32000 | G76: =SUM(G77) -> 0
C77: 0830 | D77: Wpływy z usług | E77: 32000 | F77: 32000
B78: 80195 | D78: Pozotała działalność | E78: =SUM(E79) -> 8081 | F78: =SUM(F79) -> 8081 | G78: =SUM(G79) -> 0
C79: 2030 | D79: Dotacje celowe otrzymane z budżetu państwa na realizację własnych zadań bieżących gmin (związków gmin) | E79: 8081 | F79: 8081
A80: 852 | D80: Pomoc społeczna | E80: =E81+E83+E85+E88+E92+E94 -> 2095200 | F80: =F81+F83+F85+F88+F92+F94 -> 2095200 | G80: =G81+G83+G85+G88+G92+G94 -> 0
B81: 85212 | D81: Świadczenia rodzinne, zaliczka alimentacyjn a oraz składki na ubezpieczenia emerytalne i rentowe z ubezpieczenia społecznego | E81: =SUM(E82) -> 1800000 | F81: =SUM(F82) -> 1800000 | G81: =SUM(G82) -> 0
C82: 2010 | D82: Dotacje celowe otrzymane z budżetu państwa na realizację zadań bieżących z zakresu administracji rządowej oraz innych zadań zleconych gminie(związkom gmin) ustawami | E82: 1800000 | F82: 1800000
B83: 85213 | D83: Składki na ubezpieczenie zdrowotne opłacane za osoby pobierajace niektóre swiadczenia z pomocy społecznej oraz niektóre świadczenia rodzinne | E83: =SUM(E84) -> 7200 | F83: =SUM(F84) -> 7200 | G83: =SUM(G84) -> 0
C84: 2010 | D84: Dotacje celowe otrzymane z budżetu państwa na realizację zadań bieżących z zakresu administracji rządowej oraz innych zadań zleconych gminie(związkom gmin) ustawami | E84: 7200 | F84: 7200
B85: 85214 | D85: Zasiłki i pomoc w naturze oraz składki na ubezpieczenia emerytalne i rentowe | E85: =SUM(E86:E87) -> 145000 | F85: =SUM(F86:F87) -> 145000 | G85: =SUM(G86:G87) -> 0
C86: 2010 | D86: Dotacje celowe otrzymane z budżetu państwa na realizację zadań bieżących z zakresu administracji rządowej oraz innych zadań zleconych gminie(związkom gmin) ustawami | E86: 78000 | F86: 78000
C87: 2030 | D87: Dotacje celowe otrzymane z budżetu państwa na realizację własnych zadań bieżących gmin (związków gmin) | E87: 67000 | F87: 67000
B88: 85219 | D88: Ośrodki pomocy społecznej | E88: =SUM(E89:E91) -> 99700 | F88: =SUM(F89:F91) -> 99700 | G88: =SUM(G89:G91) -> 0
C89: 2030 | D89: Dotacje celowe otrzymane z budżetu państwa na realizację własnych zadań bieżących gmin (związków gmin) | E89: 97200 | F89: 97200
C90: 0830 | D90: Wpływy z usług | E90: 1500 | F90: 1500
C91: 0920 | D91: Pozostale odsetki | E91: 1000 | F91: 1000
B92: 85228 | D92: Usługi opiekuńcze i specjalistyczne usługi opiekuńcze | E92: =SUM(E93) -> 13300 | F92: =SUM(F93) -> 13300 | G92: =SUM(G93) -> 0
C93: 2010 | D93: Dotacje celowe otrzymane z budżetu państwa na realizację zadań bieżących z zakresu administracji rządowej oraz innych zadań zleconych gminie(związkom gmin) ustawami | E93: 13300 | F93: 13300
B94: 85295 | D94: Pozostała działałność | E94: =SUM(E95) -> 30000 | F94: =SUM(F95) -> 30000 | G94: =SUM(G95) -> 0
C95: 2030 | D95: Dotacje celowe otrzymane z budżetu państwa na realizację własnych zadań bieżących gmin (związków gmin) | E95: 30000 | F95: 30000
A99: Dochody ogółem | E99: =E8+E13+E17+E25+E33+E36+E39+E66+E73+E80 -> 11782000 | F99: =F8+F13+F17+F25+F33+F36+F39+F66+F73+F80 -> 11684000 | G99: =G8+G13+G17+G25+G33+G36+G39+G66+G73+G80 -> 98000
A101: (* kol. 2 do wykorzystania fakultatywnego)

Sheet 2
A1: Wydatki budżetu gminy na 2008 r.
L3: w złotych
A13: Dział | B13: Rozdział | C13: §* | D13: Nazwa | E13: Plan na 2008 r. (6+12) | F13: z tego:
F14: Wydatki bieżące | G14: w tym: | L14: Wydatki majątkowe
G15: Wynagro- dzenia | H15: Pochodne od wynagro-dzeń | I15: Dotacje | J15: Wydatki na obsługę długu | K15: Wydatki z tytułu poręczeń i gwarancji
A16: 1 | B16: 2 | C16: 3 | D16: 4 | E16: 5 | F16: 6 | G16: 7 | H16: 8 | I16: 9 | J16: 10 | K16: 11 | L16: 12
A17: 010 | D17: Rolnictwo i łowiectwo | E17: =E18+E20+E22 -> 1597700 | F17: =F18+F20+F22 -> 27700 | G17: 0 | H17: 0 | I17: 0 | J17: 0 | K17: 0 | L17: 1570000
B18: 01010 | D18: Infrastruktura wodociągowa i sanitacyjna wsi | E18: =SUM(E19) -> 1570000 | F18: =SUM(F19) -> 0 | G18: 0 | H18: 0 | I18: 0 | J18: 0 | K18: 0 | L18: =SUM(L19) -> 1570000
C19: 6050 | D19: Wydatki inwestycyjne jednostek budżetowych | E19: 1570000 | L19: 1570000
B20: 01030 | D20: Izby rolnicze | E20: =SUM(E21) -> 12500 | F20: =SUM(F21) -> 12500 | G20: 0 | H20: 0 | I20: 0 | J20: 0 | K20: 0 | L20: 0
C21: 2850 | D21: Wpłaty gmin na rzecz izb rolniczych w wysokości 2% uzyskanych wpływów z podatku rolnego | E21: 12500 | F21: 12500
B22: 01095 | D22: Pozostała działalność | E22: =SUM(E23:E24) -> 15200 | F22: =SUM(F23:F24) -> 15200 | G22: 0 | H22: 0 | I22: 0 | J22: 0 | K22: 0 | L22: 0
C23: 4210 | D23: Zakup materiałów wyposażenia | E23: 400 | F23: 400
C24: 4300 | D24: Zakup usług pozostałych | E24: 14800 | F24: 14800
A25: 600 | D25: Transport i łączność | E25: =E26+E29+E34 -> 2121192 | F25: =F26+F29+F34 -> 171192 | G25: 0 | H25: 0 | I25: 0 | J25: 0 | K25: 0 | L25: 1950000
B26: 60014 | D26: Drogi publiczne powiatowe | E26: =SUM(E27:E28) -> 1965192 | F26: =SUM(F27:F28) -> 15192 | G26: 0 | H26: 0 | I26: 0 | J26: 0 | K26: 0 | L26: 1950000
C27: 4300 | D27: Zakup usług pozostałych | E27: 15192 | F27: 15192
C28: 6050 | D28: Wydatki inwestycyjne jednostek budżetowych | E28: 1950000 | L28: 1950000
B29: 60016 | D29: Drogi publiczne gminne | E29: =SUM(E30:E33) -> 131000 | F29: =SUM(F30:F33) -> 131000 | G29: 0 | H29: 0 | I29: 0 | J29: 0 | K29: 0 | L29: =SUM(L30:L33) -> 0
C30: 4210 | D30: Zakup materiałów wyposażenia | E30: 10000 | F30: 10000
C31: 4270 | D31: Zakup usług remontowych | E31: 100000 | F31: 100000
C32: 4300 | D32: Zakup usług pozostałych | E32: 21000 | F32: 21000
C33: 6050 | D33: Wydatki inwestycyjne jednostek budżetowych | E33: 0
B34: 60095 | D34: Pozostała działalność | E34: =SUM(E35) -> 25000 | F34: =SUM(F35) -> 25000 | G34: 0 | H34: 0 | I34: 0 | J34: 0 | K34: 0 | L34: 0
C35: 4520 | D35: Opłaty na rzecz budżetów jednostek samorządu terytorialnego | E35: 25000 | F35: 25000
A36: 700 | D36: Gospodarka mieszkaniowa | E36: =SUM(E37) -> 35000 | F36: =SUM(F37) -> 35000 | G36: 0 | H36: 0 | I36: 0 | J36: 0 | K36: 0 | L36: 0
B37: 70005 | D37: Gospodarka gruntami i nieruchomościami | E37: =SUM(E38:E41) -> 35000 | F37: =SUM(F38:F41) -> 35000 | G37: 0 | H37: 0 | I37: 0 | J37: 0 | K37: 0 | L37: 0
C38: 4210 | D38: Zakup materiałów wyposażenia | E38: 5000 | F38: 5000
C39: 4260 | D39: Zakup energii | E39: 1200 | F39: 1200
C40: 4300 | D40: Zakup usług pozostałych | E40: 27800 | F40: 27800
C41: 4610 | D41: Koszty postępowania sądowego i prokuratorskiego | E41: 1000 | F41: 1000
A42: 750 | D42: Administracja publiczna | E42: =E87+E83+E57+E53+E43 -> 1620000 | F42: =F87+F83+F57+F53+F43 -> 1600000 | G42: 1068330 | H42: 170375 | I42: 0 | J42: 0 | K42: 0 | L42: =L87+L83+L57+L53+L43 -> 20000
B43: 75011 | D43: Urzędy wojewódzkie | E43: =SUM(E44:E52) -> 120885 | F43: 120885 | G43: 90850 | H43: 15125 | I43: 0 | J43: 0 | K43: 0 | L43: 0
C44: 4010 | D44: Wynagrodzenia osobowe pracowników | E44: 84000 | F44: 84000 | G44: 84000
C45: 4040 | D45: Dodatkowe wynagrodzenie roczne | E45: 6850 | F45: 6850 | G45: 6850
C46: 4110 | D46: Składki na ubezpieczenia społeczne | E46: 12900 | F46: 12900 | H46: 12900
C47: 4120 | D47: Składki na Fundusz Pracy | E47: 2225 | F47: 2225 | H47: 2225
C48: 4210 | D48: Zakup materiałów wyposażenia | E48: 3000 | F48: 3000
C49: 4300 | D49: Zakup usług pozostałych | E49: 9200 | F49: 9200
C50: 4410 | D50: Podróże służbowe krajowe | E50: 300 | F50: 300
C51: 4440 | D51: Odpisy na zakładowy fundusz świadczeń socjalnych | E51: 1610 | F51: 1610
C52: 4700 | D52: Szkolenia pracowników niebędących członkami korpusu służby cywilnej | E52: 800 | F52: 800
B53: 75022 | D53: Rady gmin(miast i miast na prawach powiatu) | E53: =SUM(E54:E56) -> 61000 | F53: =SUM(F54:F56) -> 61000 | G53: 0 | H53: 0 | I53: 0 | J53: 0 | K53: 0 | L53: 0
C54: 3030 | D54: Różne wydatki na rzecz osób fizycznych | E54: 55000 | F54: 55000
C55: 4300 | D55: Zakup usług pozostałych | E55: 5000 | F55: 5000
C56: 4410 | D56: Podróże służbowe krajowe | E56: 1000 | F56: 1000
B57: 75023 | D57: Urzędy gmin(miast i miast na prawach powiatu) | E57: =SUM(E58:E82) -> 1375315 | F57: =SUM(F58:F82) -> 1355315 | G57: 935280 | H57: 155250 | I57: 0 | J57: 0 | K57: 0 | L57: 20000
C58: 3020 | D58: Nagrody i wydatki osobowe niezaliczone do wynagrodzeń | E58: 1000 | F58: 1000
C59: 4010 | D59: Wynagrodzenia osobowe pracowników | E59: 865680 | F59: 865680 | G59: 865680
C60: 4040 | D60: Dodatkowe wynagrodzenie roczne | E60: 66500 | F60: 66500 | G60: 66500
C61: 4110 | D61: Składki na ubezpieczenia społeczne | E61: 132400 | F61: 132400 | H61: 132400
C62: 4120 | D62: Składki na Fundusz Pracy | E62: 22850 | F62: 22850 | H62: 22850
C63: 4140 | D63: Wpłaty na PFRON | E63: 3100 | F63: 3100
C64: 4170 | D64: Wynagrodzenia bezosobowe | E64: 3100 | F64: 3100 | G64: 3100
C65: 4210 | D65: Zakup materiałów i wyposażenia | E65: 79425 | F65: 79425
C66: 4230 | D66: Zakup leków i materiałów medycznych | E66: 1500 | F66: 1500
C67: 4260 | D67: Zakup energii | E67: 23000 | F67: 23000
C68: 4280 | D68: Zakup usług zdrowotnych | E68: 800 | F68: 800
C69: 4300 | D69: Zakup usług pozostałych | E69: 50000 | F69: 50000
C70: 4350 | D70: Zakup usług dostępu do sieci internet | E70: 2500 | F70: 2500
C71: 4360 | D71: Opłaty z tytułu zakupu usług telekomunikacyjnych telefonii komórkowej | E71: 2000 | F71: 2000
C72: 4370 | D72: Opłaty z tytułu zakupu usług telekomunikacyjnych telefonii stacjonarnej | E72: 18000 | F72: 18000
C73: 4390 | D73: Zakup usług obejmujących wykonanie ekspertyz, analiz i opinii | E73: 21960 | F73: 21960
C74: 4410 | D74: Podróże służbowe krajowe | E74: 17000 | F74: 17000
C75: 4420 | D75: Podróże służbowe zagraniczne | E75: 5000 | F75: 5000
C76: 4430 | D76: Różne opłaty i składki | E76: 9500 | F76: 9500
C77: 4440 | D77: Odpisy na zakładowy fundusz świadczeń socjalnych | E77: 18000 | F77: 18000
C78: 4700 | D78: Szkolenia pracowników niebędących członkami korpusu służby cywilnej | E78: 5000 | F78: 5000
C79: 4740 | D79: Zakup materiałów papierniczych do sprzętu drukarskiego i urządzeń kserograficznych | E79: 2000 | F79: 2000
C80: 4750 | D80: Zakup akcesoriów komputerowych, w tym programów i licencji | E80: 5000 | F80: 5000
C81: 6050 | D81: Wydatki inwestycyjne jednostek budżetowych | E81: 0 | F81: 0
C82: 6060 | D82: Wydatki na zakupy inwestycyjne jednostek budżetowych | E82: 20000 | L82: 20000
B83: 75075 | D83: Promocja jednostek samorządu terytorialnego | E83: =SUM(E84:E86) -> 11000 | F83: =SUM(F84:F86) -> 11000 | G83: 2000 | H83: 0 | I83: 0 | J83: 0 | K83: 0 | L83: 0
C84: 4170 | D84: Wynagrodzenia bezosobowe | E84: 2000 | F84: 2000 | G84: 2000
C85: 4210 | D85: Zakup materiałów i wyposażenia | E85: 6000 | F85: 6000
C86: 4300 | D86: Zakup usług pozostałych | E86: 3000 | F86: 3000
B87: 75095 | D87: Pozostała działalność | E87: =SUM(E88:E91) -> 51800 | F87: =SUM(F88:F91) -> 51800 | G87: 40200 | H87: 0 | I87: 0 | J87: 0 | K87: 0 | L87: 0
C88: 3030 | D88: Różne wydatki na rzecz osób fizycznych | E88: 9600 | F88: 9600
C89: 4100 | D89: Wynagrodzenia agencyjno-prowizyjne | E89: 40200 | F89: 40200 | G89: 40200
C90: 4210 | D90: Zakup materiałów i wyposażenia | E90: 1000 | F90: 1000
C91: 4300 | D91: Zakup usług pozostałych | E91: 1000 | F91: 1000
A92: 751 | D92: Urzędy naczelnych organów władzy państwowej, kontroli i ochrony prawa oraz sądownictwa | E92: =E93 -> 1037 | F92: =F93 -> 1037 | G92: 0 | H92: 0 | I92: 0 | J92: 0 | K92: 0 | L92: 0
B93: 75101 | D93: Urzędy naczelnych organów władzy państwowej, kontroli i ochrony prawa | E93: =SUM(E94) -> 1037 | F93: =SUM(F94) -> 1037 | G93: 0 | H93: 0 | I93: 0 | J93: 0 | K93: 0 | L93: 0
C94: 4300 | D94: Zakup usług pozostałych | E94: 1037 | F94: 1037
A95: 754 | D95: Bezpieczeństwo publiczne i ochrona przeciwpożarowa | E95: =E96+E105 -> 72700 | F95: =F96+F105 -> 72700 | G95: 14832 | H95: 2475 | I95: 0 | J95: 0 | K95: 0 | L95: 0
B96: 75412 | D96: Ochotnicze straże pożarne | E96: =SUM(E97:E104) -> 72100 | F96: =SUM(F97:F104) -> 72100 | G96: 14832 | H96: 2475 | I96: 0 | J96: 0 | K96: 0 | L96: 0
C97: 4110 | D97: Składki na ubezpieczenia społeczne | E97: 2110 | F97: 2110 | H97: 2110
C98: 4120 | D98: Składki na Fundusz Pracy | E98: 365 | F98: 365 | H98: 365
C99: 4170 | D99: Wynagrodzenia bezosobowe | E99: 14832 | F99: 14832 | G99: 14832
C100: 4210 | D100: Zakup materiałów i wyposażenia | E100: 24093 | F100: 24093
C101: 4260 | D101: Zakup energii | E101: 11000 | F101: 11000
C102: 4300 | D102: Zakup usług pozostałych | E102: 6700 | F102: 6700
C103: 4370 | D103: Opłaty z tytułu zakupu usług telekomunikacyjnych telefonii stacjonarnej | E103: 1000 | F103: 1000
C104: 4430 | D104: Różne opłaty i składki | E104: 12000 | F104: 12000
B105: 75414 | D105: Obrona cywilna | E105: =SUM(E106) -> 600 | F105: =SUM(F106) -> 600 | G105: 0 | H105: 0 | I105: 0 | J105: 0 | K105: 0 | L105: 0
C106: 4210 | D106: Zakup materiałów i wyposażenia | E106: 600 | F106: 600
A107: 757 | D107: Obsługa długu publicznego | E107: =E108 -> 250000 | F107: =F108 -> 250000 | G107: 0 | H107: 0 | I107: 0 | J107: 250000 | K107: 0 | L107: =L108 -> 0
B108: 75702 | D108: Obsługa papierów wartościowych, kredytów i pożycz jednostek samorządu terytorialnego | E108: =SUM(E109) -> 250000 | F108: =SUM(F109) -> 250000 | G108: =SUM(G109) -> 0 | H108: 0 | I108: 0 | J108: 250000 | K108: 0 | L108: 0
C109: 8070 | D109: Odsetki i dyskonto od krajowych skarbowych papierów wartościowych oraz pożyczek i kredytów | E109: 250000 | F109: 250000 | J109: 250000
A110: 758 | D110: Różne rozliczenia | E110: =E111+E113 -> 53000 | F110: =F111+F113 -> 53000 | G110: 0 | H110: 0 | I110: 0 | J110: 0 | K110: 0 | L110: 0
B111: 775814 | D111: Różne rozliczenia finansowe | E111: =SUM(E112) -> 3000 | F111: =SUM(F112) -> 3000 | G111: 0 | H111: 0 | I111: 0 | J111: 0 | K111: 0 | L111: 0
C112: 4300 | D112: Zakup usług pozostałych | E112: 3000 | F112: 3000
B113: 75818 | D113: Rezerwy ogólne i celowe | E113: =SUM(E114) -> 50000 | F113: =SUM(F114) -> 50000 | G113: 0 | H113: 0 | I113: 0 | J113: 0 | K113: 0 | L113: 0
C114: 4810 | D114: Rezerwy | E114: 50000 | F114: 50000
A115: 801 | D115: Oświata i wychowanie | E115: =E116+E137+E145+E158+E177+E190+E208+E211+E218 -> 4972243 | F115: =F116+F137+F145+F158+F177+F190+F208+F211+F218 -> 4972243 | G115: 3191292 | H115: 610327 | I115: 0 | J115: 0 | K115: 0 | L115: =L116+L137+L145+L158+L177+L190+L208+L211+L218 -> 0
B116: 80101 | D116: Szkoły podstawowe | E116: =SUM(E117:E136) -> 2435052 | F116: 2435052 | G116: 1635805 | H116: 313765 | I116: 0 | J116: 0 | K116: 0 | L116: 0
C117: 3020 | D117: Nagrody i wydatki osobowe niezaliczone do wynagrodzeń | E117: 130880 | F117: 130880
C118: 4010 | D118: Wynagrodzenia osobowe pracowników | E118: 1505000 | F118: 1505000 | G118: 1505000
C119: 4040 | D119: Dodatkowe wynagrodzenie roczne | E119: 116305 | F119: 116305 | G119: 116305
C120: 4110 | D120: Składki na ubezpieczenia społeczne | E120: 270860 | F120: 270860 | H120: 270860
C121: 4120 | D121: Składki na Fundusz Pracy | E121: 42905 | F121: 42905 | H121: 42905
C122: 4170 | D122: Wynagrodzenia bezosobowe | E122: 14500 | F122: 14500 | G122: 14500
C123: 4210 | D123: Zakup materiałów i wyposażenia | E123: 140000 | F123: 140000
C124: 4240 | D124: Zakup pomocy naukowych dydaktycznych i książek | E124: 1000 | F124: 1000
C125: 4260 | D125: Zakup energii | E125: 28600 | F125: 28600
C126: 4270 | D126: Zakup usług remontowych | E126: 44000 | F126: 44000
C127: 4280 | D127: Zakup usług zdrowotnych | E127: 2600 | F127: 2600
C128: 4300 | D128: Zakup usług pozostałych | E128: 29500 | F128: 29500
C129: 4350 | D129: Zakup usług dostępu do sieci internet | E129: 3677 | F129: 3677
C130: 4360 | D130: Opłaty z tytułu zakupu usług telekomunikacyjnych telefonii komórkowej | E130: 0
C131: 4370 | D131: Opłaty z tytułu zakupu usług telekomunikacyjnych telefonii stacjonarnej | E131: 11650 | F131: 11650
C132: 4410 | D132: Podróże służbowe krajowe | E132: 2600 | F132: 2600
C133: 4430 | D133: Różne opłaty i składki | E133: 7400 | F133: 7400
C134: 4440 | D134: Odpisy na zakładowy fundusz świadczeń socjalnych | E134: 78775 | F134: 78775
C135: 4740 | D135: Zakup materiałów papierniczych do sprzętu drukarskiego i urządzeń kserograficznych | E135: 3000 | F135: 3000
C136: 4750 | D136: Zakup akcesoriów komputerowych, w tym programów i licencji | E136: 1800 | F136: 1800
B137: 80103 | D137: Oddziały przedszkolne w szkołach podstawowych | E137: =SUM(E138:E144) -> 219890 | F137: =SUM(F138:F144) -> 219890 | G137: 163380 | H137: 32120 | I137: 0 | J137: 0 | K137: 0 | L137: 0
C138: 3020 | D138: Nagrody i wydatki osobowe niezaliczone do wynagrodzeń | E138: 15990 | F138: 15990
C139: 4010 | D139: Wynagrodzenia osobowe pracowników | E139: 151600 | F139: 151600 | G139: 151600
C140: 4040 | D140: Dodatkowe wynagrodzenie roczne | E140: 11780 | F140: 11780 | G140: 11780
C141: 4110 | D141: Składki na ubezpieczenia społeczne | E141: 27730 | F141: 27730 | H141: 27730
C142: 4120 | D142: Składki na Fundusz Pracy | E142: 4390 | F142: 4390 | H142: 4390
C143: 4280 | D143: Zakup usług zdrowotnych | E143: 100 | F143: 100
C144: 4440 | D144: Odpisy na zakładowy fundusz świadczeń socjalnych | E144: 8300 | F144: 8300
B145: 80104 | D145: Przedszkola | E145: =SUM(E146:E157) -> 293660 | F145: =SUM(F146:F157) -> 293660 | G145: 202900 | H145: 39500 | I145: 0 | J145: 0 | K145: 0 | L145: 0
C146: 3020 | D146: Nagrody i wydatki osobowe niezaliczone do wynagrodzeń | E146: 17700 | F146: 17700
C147: 4010 | D147: Wynagrodzenia osobowe pracowników | E147: 188000 | F147: 188000 | G147: 188000
C148: 4040 | D148: Dodatkowe wynagrodzenie roczne | E148: 14900 | F148: 14900 | G148: 14900
C149: 4110 | D149: Składki na ubezpieczenia społeczne | E149: 34100 | F149: 34100 | H149: 34100
C150: 4120 | D150: Składki na Fundusz Pracy | E150: 5400 | F150: 5400 | H150: 5400
C151: 4210 | D151: Zakup materiałów i wyposażenia | E151: 5000 | F151: 5000
C152: 4260 | D152: Zakup energii | E152: 1500 | F152: 1500
C153: 4280 | D153: Zakup usług zdrowotnych | E153: 120 | F153: 120
C154: 4300 | D154: Zakup usług pozostałych | E154: 15000 | F154: 15000
C155: 4370 | D155: Opłaty z tytułu zakupu usług telekomunikacyjnych telefonii stacjonarnej | E155: 1600 | F155: 1600
C156: 4430 | D156: Różne opłaty i składki | E156: 430 | F156: 430
C157: 4440 | D157: Odpisy na zakładowy fundusz świadczeń socjalnych | E157: 9910 | F157: 9910
B158: 80110 | D158: Gimnazja | E158: =SUM(E159:E176) -> 1295223 | F158: =SUM(F159:F176) -> 1295223 | G158: 879000 | H158: 168380 | I158: 0 | J158: 0 | K158: 0 | L158: 0
C159: 3020 | D159: Nagrody i wydatki osobowe niezaliczone do wynagrodzeń | E159: 78960 | F159: 78960
C160: 4010 | D160: Wynagrodzenia osobowe pracowników | E160: 800500 | F160: 800500 | G160: 800500
C161: 4040 | D161: Dodatkowe wynagrodzenie roczne | E161: 61600 | F161: 61600 | G161: 61600
C162: 4110 | D162: Składki na ubezpieczenia społeczne | E162: 145250 | F162: 145250 | H162: 145250
C163: 4120 | D163: Składki na Fundusz Pracy | E163: 23130 | F163: 23130 | H163: 23130
C164: 4170 | D164: Wynagrodzenia bezosobowe | E164: 16900 | F164: 16900 | G164: 16900
C165: 4210 | D165: Zakup materiałów i wyposażenia | E165: 41600 | F165: 41600
C166: 4260 | D166: Zakup energii | E166: 15000 | F166: 15000
C167: 4270 | D167: Zakup usług remontowych | E167: 30000 | F167: 30000
C168: 4280 | D168: Zakup usług zdrowotnych | E168: 1000 | F168: 1000
C169: 4300 | D169: Zakup usług pozostałych | E169: 18200 | F169: 18200
C170: 4350 | D170: Zakup usług dostępu do sieci internet | E170: 1600 | F170: 1600
C171: 4370 | D171: Opłaty z tytułu zakupu usług telekomunikacyjnych telefonii stacjonarnej | E171: 2900 | F171: 2900
C172: 4410 | D172: Podróże służbowe krajowe | E172: 1750 | F172: 1750
C173: 4430 | D173: Różne opłaty i składki | E173: 3000 | F173: 3000
C174: 4440 | D174: Odpisy na zakładowy fundusz świadczeń socjalnych | E174: 50733 | F174: 50733
C175: 4740 | D175: Zakup materiałów papierniczych do sprzętu drukarskiego i urządzeń kserograficznych | E175: 1600 | F175: 1600
C176: 4750 | D176: Zakup akcesoriów komputerowych, w tym programów i licencji | E176: 1500 | F176: 1500
B177: 80113 | D177: Dowożenie uczniów do szkół | E177: =SUM(E178:E189) -> 308754 | F177: =SUM(F178:F189) -> 308754 | G177: 41077 | H177: 7610 | I177: 0 | J177: 0 | K177: 0 | L177: 0
C178: 3020 | D178: Nagrody i wydatki osobowe niezaliczone do wynagrodzeń | E178: 12 | F178: 12
C179: 4010 | D179: Wynagrodzenia osobowe pracowników | E179: 38000 | F179: 38000 | G179: 38000
C180: 4040 | D180: Dodatkowe wynagrodzenie roczne | E180: 3077 | F180: 3077 | G180: 3077
C181: 4110 | D181: Składki na ubezpieczenia społeczne | E181: 6600 | F181: 6600 | H181: 6600
C182: 4120 | D182: Składki na Fundusz Pracy | E182: 1010 | F182: 1010 | H182: 1010
C183: 4210 | D183: Zakup materiałów i wyposażenia | E183: 37000 | F183: 37000
C184: 4280 | D184: Zakup usług zdrowotnych | E184: 100 | F184: 100
C185: 4300 | D185: Zakup usług pozostałych | E185: 220000 | F185: 220000
C186: 4360 | D186: Opłaty z tytułu zakupu usług telekomunikacyjnych telefonii komórkowej | E186: 350 | F186: 350
C187: 4410 | D187: Podróże służbowe krajowe | E187: 200 | F187: 200
C188: 4430 | D188: Różne opłaty i składki | E188: 1600 | F188: 1600
C189: 4440 | D189: Odpisy na zakładowy fundusz świadczeń socjalnych | E189: 805 | F189: 805
B190: 80114 | D190: Zespoły obsługi ekonomiczno-administracyjnej szkół | E190: =SUM(E191:E207) -> 248601 | F190: =SUM(F191:F207) -> 248601 | G190: 183700 | H190: 33652 | I190: 0 | J190: 0 | K190: 0 | L190: 0
C191: 3020 | D191: Nagrody i wydatki osobowe niezaliczone do wynagrodzeń | E191: 24 | F191: 24
C192: 4010 | D192: Wynagrodzenia osobowe pracowników | E192: 170000 | F192: 170000 | G192: 170000
C193: 4040 | D193: Dodatkowe wynagrodzenie roczne | E193: 13700 | F193: 13700 | G193: 13700
C194: 4110 | D194: Składki na ubezpieczenia społeczne | E194: 29200 | F194: 29200 | H194: 29200
C195: 4120 | D195: Składki na Fundusz Pracy | E195: 4452 | F195: 4452 | H195: 4452
C196: 4210 | D196: Zakup materiałów i wyposażenia | E196: 8000 | F196: 8000
C197: 4280 | D197: Zakup usług zdrowotnych | E197: 200 | F197: 200
C198: 4300 | D198: Zakup usług pozostałych | E198: 2000 | F198: 2000
C199: 4350 | D199: Zakup usług dostępu do sieci internet | E199: 1800 | F199: 1800
C200: 4360 | D200: Opłaty z tytułu zakupu usług telekomunikacyjnych telefonii komórkowej | E200: 2000 | F200: 2000
C201: 4370 | D201: Opłaty z tytułu zakupu usług telekomunikacyjnych telefonii stacjonarnej | E201: 3500 | F201: 3500
C202: 4410 | D202: Podróże służbowe krajowe | E202: 2500 | F202: 2500
C203: 4440 | D203: Odpisy na zakładowy fundusz świadczeń socjalnych | E203: 4025 | F203: 4025
C204: 4700 | D204: Szkolenia pracowników niebędących członkami korpusu służby cywilnej | E204: 1000 | F204: 1000
C205: 4740 | D205: Zakup materiałów papierniczych do sprzętu drukarskiego i urządzeń kserograficznych | E205: 1200 | F205: 1200
C206: 4750 | D206: Zakup akcesoriów komputerowych, w tym programów i licencji | E206: 5000 | F206: 5000
C207: 6060 | D207: Wydatki na zakupy inewstycyjne jednostek budżetowych | E207: 0
B208: 80146 | D208: Dokształcanie i doskonalenie nauczycieli | E208: =SUM(E209:E210) -> 27790 | F208: =SUM(F209:F210) -> 27790 | G208: 0 | H208: 0 | I208: 0 | J208: 0 | K208: 0 | L208: 0
C209: 4300 | D209: Zakup usług pozostalych | E209: 25200 | F209: 25200
C210: 4410 | D210: Podróże służbowe krajowe | E210: 2590 | F210: 2590
... 110 more rows

Sheet 3
A1: Limity wydatków na wieloletnie programy inwestycyjne w latach 2008 - 2010
N2: w złotych
A3: Lp. | B3: Dział | C3: Rozdz. | D3: §** | E3: Nazwa zadania inwestycyjnego i okres realizacji (w latach) | F3: Łączne koszty finansowe | G3: Planowane wydatki | N3: Jednostka organizacyjna realizująca program lub koordynująca wykonanie programu
G4: rok budżetowy 2008 (8+9+10+11) | H4: z tego źródła finansowania | L4: 2009 r. | M4: 2010 r.
H5: dochody własne jst | I5: kredyty i pożyczki | J5: środki pochodzące z innych źródeł* | K5: środki wymienione w art. 5 ust. 1 pkt 2 i 3 u.f.p.
A8: 1 | B8: 2 | C8: 3 | D8: 4 | E8: 5 | F8: 6 | G8: 7 | H8: 8 | I8: 9 | J8: 10 | K8: 11 | L8: 12 | M8: 13 | N8: 14
A9: 1. | B9: 010 | C9: 01010 | D9: 6050 | E9: Budowa stacji uzdatniania wody wraz ze studniami głębinowymi w miejscowości Czepielin i sieci wodociągowej z przyłączami w miejscowościach Czepielin i Kolonia Czepielin warunkiem rozwoju Gminy Mordy | F9: 5.500.000 | G9: 1.282.000 | H9: 576.000 | I9: 706.000 | J9: A. B. C. … | L9: 4.218.000 | N9: Urząd Miasta i Gminy
A10: 2. | B10: 010 | C10: 01010 | D10: 6050 | E10: Ochrona czystości wód rzeki Liwiec poprzez rozbudowę oczyszczalni ścieków w miejscowości Kolonia Mordy | F10: 2.070.000 | G10: 100.000 | H10: 100.000 | J10: A. B. C. … | L10: 1.970.000 | N10: Urząd Miasta i Gminy
A11: 3. | B11: 010 | C11: 01010 | D11: 6050 | E11: Budowa sieci wodociągowej z przyłączami w miejscowościach:Radzików Wielki, Radzików Kornica, Radzików Stopki, Piory Pytki i Ostoje,Wielgorz,Wyczółki, Czepielin, Kolonia Czepielin | F11: 650.000 | L11: 150.000 | M11: 500.000 | N11: Urząd Miasta i Gminy
A12: 4. | B12: 010 | C12: 01010 | D12: 6050 | E12: Ochrona obszaru Natura 2000 przed zanieczyszczeniami poprzez budowę systemów kanalizacji sanitarnej w gminie Mordy | F12: 1.800.000 | M12: 1.800.000 | N12: Urząd Miasta i Gminy
A13: 5. | B13: 010 | C13: 01010 | D13: 6050 | E13: Rozbudowa kanalizacji sanitarnej z przykanalikami w Mordach przy ul.Narutowicza | F13: 260.000 | G13: 260.000 | H13: 20.000 | I13: 90.000 | J13: A. B.150.000 C. … | N13: Urząd Miasta i Gminy
A14: 6. | B14: 600 | C14: 60014 | D14: 6050 | E14: Poprawa bezpieczeństwa drogowego i zwiększenie atrakcyjności miasta Mordy poprzez przebudowę jezdni i chodników | F14: 2.100.000 | G14: 1.300.000 | I14: 1.200.000 | J14: A. B.100.000 C. … | L14: 800.000 | N14: Urząd Miasta i Gminy
A15: 7. | B15: 600 | C15: 60016 | D15: 6050 | E15: Poprawa atrakcyjnosci turystycznej regionu poprzez przebudowę drogi w miejscowości Klimonty | F15: 700.000 | M15: 700.000 | N15: Urząd Miasta i Gminy
A16: 8. | B16: 600 | C16: 60016 | D16: 6050 | E16: Polepszenie warunków życia społecznści lokalnej poprzez połączenie ciągów komunikacyjnych dróg powiatowych i wojewódzkich w miejscowości Głuchów | F16: 500.000 | M16: 500.000 | N16: Urząd Miasta i Gminy
A17: 9. | B17: 600 | C17: 60016 | D17: 6050 | E17: Poprawa warunków życia społeczności lokalnych poprzez przebudowę drogi gminnej we wsi Olędy łączącej siedziby gmin | F17: 600.000 | M17: 600.000 | N17: Urząd Miasta i Gminy
A18: 10. | B18: 600 | C18: 60016 | D18: 6050 | E18: Usprawnienie komunikacji spoleczności lokalnej poprzez przebudowę drogi w Wólce Soseńskiej | F18: 650.000 | M18: 650.000 | N18: Urząd Miasta i Gminy
A19: 11. | B19: 600 | C19: 60016 | D19: 6050 | E19: Poprawa warunków życia społeczności lokalnej poprzez przebudowę drogi gminnej Rogóziec-Ptaszki łączącej dwa ciągi powiatowe | F19: 2.600.000 | M19: 2.600.000 | N19: Urząd Miasta i Gminy
A20: 12. | B20: 600 | C20: 60016 | D20: 6050 | E20: Odwodnienie ulicy Pustej w Mordach | F20: 65.000 | G20: 65.000 | H20: 65.000 | N20: Urząd Miasta i Gminy
A21: 13 | B21: 750 | C21: 75023 | D21: 6050 | E21: Modernizacja budynku ośrodka zdrowia, pomocy społecznej i Urzędu Miasta i Gminy w Mordach | F21: 2.000.000 | G21: 70.000 | H21: 70.000 | L21: 1.930.000 | N21: Urząd Miasta i Gminy
A22: 14 | B22: 750 | C22: 75023 | D22: 6060 | E22: Zakup zespołów komputerowych dla UMiG w Mordach | F22: 20.000 | G22: 20.000 | H22: 20.000 | N22: Urząd Miasta i Gminy
A23: 15 | B23: 926 | C23: 92605 | D23: 6050 | E23: Poprawa atrakcyjności miasta Mordy poprzez budowę infrastruktury sportowej | F23: 1.750.000 | L23: 1.750.000 | N23: Urząd Miasta i Gminy
A24: 16 | B24: 801 | C24: 80101 | D24: 6050 | E24: Budowa instalacji zbiornikowej na gaz płynny ze zbiorrnikiem i instalacji gazowej w budynku Szkoły Podstawowej w Mordach | F24: 14.000 | G24: 14.000 | H24: 14.000 | N24: ZEASZ
A25: 17 | B25: 801 | C25: 80101 | D25: 6050 | E25: Modernizacja boiska szkolnego i wyposażenie placu zabaw w Zespole Oświatowym w Mordach | F25: 198.000 | G25: 198.000 | I25: 148.000 | J25: A. B.50.000 C. … | N25: ZEASZ
A26: 18 | B26: 801 | C26: 80101 | D26: 6050 | E26: Budowa boiska w Radzikowie Wielkim | F26: 130.000 | G26: 130.000 | I26: 100.000 | J26: A. B.30.000 C. … | N26: ZEASZ
A27: 19 | B27: 851 | C27: 85121 | D27: 6050 | E27: Modernizacja budynku Ośrodka Zdrowia w Radzikowie Wielkim | F27: 300.000 | G27: 30.000 | H27: 30.000 | J27: A. B. C. … | L27: 270.000 | N27: Urząd Miasta i Gminy
A28: 20 | B28: 600 | C28: 60016 | D28: 6050 | E28: Przebudowa drogi gminnej we wsi Głuchów gmina Mordy- nawierzchnia bitumiczna | F28: 306.000 | G28: 306.000 | I28: 106.000 | J28: A. B.200.000 C. … | N28: Urząd Miasta i Gminy
A29: 21 | B29: 921 | C29: 62109 | D29: 6050 | E29: Odnowa centrum miejscowości Klimonty | F29: 666.000 | G29: 2.000 | H29: 2.000 | L29: 664.000 | N29: Urząd Miasta i Gminy
A30: 22 | B30: 600 | C30: 60016 | D30: 6050 | E30: Modernizacja drogi transportu rolnego Stara Wieś- Wojnów | F30: 115.000 | G30: 115.000 | I30: 75.000 | J30: 40.000 | N30: Urząd Miasta i Gminy
A31: Ogółem | F31: 22.994.000 | G31: 3.892.000 | H31: 935.000 | I31: 2.387.000 | J31: 570.000 | L31: 11.752.000 | M31: 7.350.000 | N31: x
A33: * Wybrać odpowiednie oznaczenie źródła finansowania: | N33: 18
A34: A. Dotacje i środki z budżetu państwa (np. od wojewody, MEN, UKFiS, …)
A35: B. Środki i dotacje otrzymane od innych jst oraz innych jednostek zaliczanych do sektora finansów publicznych
A36: C. Inne źródła
A38: (** kol. 4 do wykorzystania fakultatywnego)

Sheet 3a
A1: Zadania inwestycyjne w 2008 r.
L2: w złotych
A3: Lp. | B3: Dział | C3: Rozdz. | D3: §** | E3: Nazwa zadania inwestycyjnego | F3: Łączne koszty finansowe | G3: Planowane wydatki | L3: Jednostka organizacyjna realizująca program lub koordynująca wykonanie programu
G4: rok 2008 (8+9+10+11) | H4: z tego źródła finansowania
H5: dochody własne jst | I5: kredyty i pożyczki | J5: środki pochodzące z innych źródeł* | K5: środki wymienione w art. 5 ust. 1 pkt 2 i 3 u.f.p.
A8: 1 | B8: 2 | C8: 3 | D8: 4 | E8: 5 | F8: 6 | G8: 7 | H8: 8 | I8: 9 | J8: 10 | K8: 11 | L8: 12
A9: 1. | J9: A. B. C. …
A10: 2. | J10: A. B. C. …
A11: 3. | J11: A. B. C. …
A12: 4. | J12: A. B. C. …
A13: Ogółem | L13: x
A15: * Wybrać odpowiednie oznaczenie źródła finansowania:
A16: A. Dotacje i środki z budżetu państwa (np. od wojewody, MEN, UKFiS, …)
A17: B. Środki i dotacje otrzymane od innych jst oraz innych jednostek zaliczanych do sektora finansów publicznych
A18: C. Inne źródła
A20: (** kol. 4 do wykorzystania fakultatywnego)

Sheet 4
A1: Wydatki* na programy i projekty realizowane ze środków pochodzących z funduszy strukturalnych i Funduszu Spójności
A3: Lp. | B3: Projekt | C3: Kategoria interwencji funduszy strukturalnych | D3: Klasyfikacja (dział, rozdział, paragraf) | E3: Wydatki w okresie realizacji Projektu (całkowita wartość Projektu) (6+7) | F3: w tym: | H3: Planowane wydatki
F4: Środki z budżetu krajowego | G4: Środki z budżetu UE | H4: 2008 r.
H5: Wydatki razem (9+13) | I5: z tego:
I6: Środki z budżetu krajowego** | M6: Środki z budżetu UE
I7: Wydatki razem (10+11+12) | J7: z tego, źródła finansowania: | M7: Wydatki razem (14+15+16+17) | N7: z tego, źródła finansowania:
J8: pożyczki i kredyty | K8: obligacje | L8: pozostałe** | N8: pożyczki na prefinansowanie z budżetu państwa | O8: pożyczki i kredyty | P8: obligacje | Q8: pozostałe
A9: 1 | B9: 2 | C9: 3 | D9: 4 | E9: 5 | F9: 6 | G9: 7 | H9: 8 | I9: 9 | J9: 10 | K9: 11 | L9: 12 | M9: 13 | N9: 14 | O9: 15 | P9: 16 | Q9: 17
A10: 1 | B10: Wydatki majątkowe razem: | C10: x
A11: 1.1 | B11: Program:
B12: Priorytet:
B13: Działanie:
B14: Nazwa projektu:
B15: Razem wydatki:
B16: z tego: 2008 r.
B17: 2009 r.
B18: 2010r.
B19: 2011 r
A20: 1.2 | B20: Program:
B21: Priorytet:
B22: Działanie:
B23: Nazwa projektu:
B24: Razem wydatki:
B25: z tego: 2008 r.
B26: 2009 r.
B27: 2010 r.
B28: 2011 r.
A29: 1.3 | B29: ...............
A30: 2 | B30: Wydatki bieżące razem: | C30: x
A31: 2.1 | B31: Program:
B32: Priorytet:
B33: Działanie:
B34: Nazwa projektu:
B35: Razem wydatki:
B36: z tego: 2008 r.
B37: 2009 r.
B38: 2010 r.
B39: 2011 r.
A40: 2.2 | B40: ...............
A41: Ogółem (1+2) | C41: x
A43: * wydatki obejmują wydatki bieżące i majątkowe (dotyczące inwestycji rocznych i ujętych w wieloletnim programie inwestycyjnym)
A44: ** środki własne jst, współfinansowanie z budżetu państwa oraz inne

Sheet 5
A1: Przychody i rozchody budżetu w 2013 r.
B2: c
A4: Lp. | B4: Treść | C4: Klasyfikacja § | D4: Plan
A7: 1 | B7: 2 | C7: 3
A8: 1. | B8: Dochody | D8: 15579911.3
B9: Dochody bieżące | D9: 15145084.3
A10: 2. | B10: Wydatki | D10: 16256319.84
B11: Wydatki bieżące | D11: 15283507.74
A12: 3. | B12: Wynik budżetu | D12: -676408.54
A13: Przychody ogółem: | D13: 1880948.54
A14: 1. | B14: Kredyty | C14: § 952 | D14: 1022090.61
A16: 2. | B16: Pożyczki | C16: § 952
A17: 3. | B17: Pożyczki na finansowanie zadań realizowanych z udziałem środków pochodzących z budżetu UE | C17: § 903
A18: 4. | B18: Przychody ze spłat pożyczek udzielonych na finan sowanie zadan realizowanych z udzialem środków pochodzących z budżetu UE | C18: § 902
A19: 5. | B19: Przychody ze spłat pożyczek udzielonych na | C19: § 944
A20: 6. | B20: Nadwyżka budżetu z lat ubiegłych | C20: § 957 | D20: 858857.93
A21: 7. | B21: Papiery wartościowe (obligacje) | C21: § 931
A22: 8. | B22: Wolne środki,o których mowa w art.217ust 2 pkt 6 ufp | C22: § 950
A23: Rozchody ogółem: | D23: 1204540
A24: 1. | B24: Spłaty kredytów | C24: § 992 | D24: 443000
A26: 2. | B26: Spłaty pożyczek | C26: § 992 | D26: 761540
A27: 3. | B27: Spłaty pożyczek otrzymanych na finansowanie zadań realizowanych z udziałem środków pochodzących z budżetu UE | C27: § 963
A28: 4. | B28: Pożyczki udzielone na finansowanie zadań realizowanych z udziałem środków pochodzących z budżetu UE | C28: § 962
A29: 5. | B29: Przelewy z rachunków lokat | C29: § 994
A30: 6. | B30: Wykup papierów wartościowych (obligacji) | C30: § 982
A31: 7. | B31: Rozchody z tytułu innych rozliczeń | C31: § 995
B34: Informacje dodatkowe:
B35: 1) przychody z tytuyłu kredytów krótkoterminowych: 1.000.000 zł,
B37: 2) rozchody z tytułu kredytów krótkoterminowych: 1.000.000 zł.

Sheet 6
A1: Dochody i wydatki związane z realizacją zadań z zakresu administracji rządowej i innych zadań zleconych odrębnymi ustawami w 2008 r
J2: w złotych
A3: Dział | B3: Rozdział | C3: §* | D3: Dotacje ogółem | E3: Wydatki ogółem (6+10) | F3: z tego:
F4: Wydatki bieżące | G4: w tym: | J4: Wydatki majątkowe
G5: wynagrodzenia | H5: pochodne od wynagrodzeń | I5: świadczenia społeczne
A6: 1 | B6: 2 | C6: 3 | D6: 4 | E6: 5 | F6: 6 | G6: 7 | H6: 8 | I6: 9 | J6: 10
A7: 750 | B7: 75011 | C7: 2010 | D7: 68611 | E7: 68611 | F7: 68611 | G7: 68611
C8: 4010 | E8: 68611 | F8: 68611 | G8: 68611
A9: 751 | B9: 75101 | C9: 2010 | D9: 1037 | E9: 1037 | F9: 1037
C10: 4300 | E10: 1037 | F10: 1037
A11: 754 | B11: 75414 | C11: 2010 | D11: 600 | E11: 600 | F11: 600
C12: 4210 | D12: 600 | E12: 600 | F12: 600
A13: 852 | D13: 1898500 | E13: 1898500 | F13: 1898500 | G13: 41510 | H13: 8965 | I13: 1828000
B14: 85212 | C14: 2010 | D14: 1800000 | E14: 1800000 | F14: 1800000 | G14: 28210 | H14: 8965 | I14: 1750000
C15: 3110 | E15: 1750000 | F15: 1750000 | I15: 1750000
C16: 4010 | E16: 26100 | F16: 26100 | G16: 26100
C17: 4040 | E17: 2110 | F17: 2110 | G17: 2110
C18: 4110 | E18: 8250 | F18: 8250 | H18: 8250
C19: 4120 | E19: 715 | F19: 715 | H19: 715
C20: 4210 | E20: 4125 | F20: 4125
C21: 4280 | E21: 120 | F21: 120
C22: 4300 | E22: 3000 | F22: 3000
C23: 4360 | E23: 100 | F23: 100
C24: 4370 | E24: 2000 | F24: 2000
C25: 4410 | E25: 400 | F25: 400
C26: 4440 | E26: 880 | F26: 880
C27: 4700 | E27: 400 | F27: 400
C28: 4740 | E28: 800 | F28: 800
C29: 4750 | E29: 1000 | F29: 1000
B30: 85213 | C30: 2010 | D30: 7200 | E30: 7200 | F30: 7200
C31: 4130 | E31: 7200 | F31: 7200
B32: 85214 | C32: 2010 | D32: 78000 | E32: 78000 | F32: 78000 | I32: 78000
C33: 3110 | E33: 78000 | F33: 78000 | I33: 78000
B34: 85228 | C34: 2010 | D34: 13300 | E34: 13300 | F34: 13300 | G34: 13300
C35: 4170 | E35: 13300 | F35: 13300 | G35: 13300
A37: Ogółem | E37: 1968748 | F37: 1968748 | G37: 110121 | H37: 8965 | I37: 1828000
A39: (* kol. 3 do wykorzystania fakultatywnego)

Sheet 7
A1: Dochody i wydatki związane z realizacją zadań z zakresu administracji rządowej wykonywanych na podstawie porozumień z organami administracji rządowej w 2008 r.
J3: w złotych
A4: Dział | B4: Rozdział | C4: §* | D4: Dotacje ogółem | E4: Wydatki ogółem (6+10) | F4: z tego:
F5: Wydatki bieżące | G5: w tym: | J5: Wydatki majątkowe
G6: wynagrodzenia | H6: pochodne od wynagrodzeń | I6: świadczenia społeczne
A7: 1 | B7: 2 | C7: 3 | D7: 4 | E7: 5 | F7: 6 | G7: 7 | H7: 8 | I7: 9 | J7: 10
A21: Ogółem
A23: (* kol. 3 do wykorzystania fakultatywnego)

Sheet 8
A1: Dochody i wydatki związane z realizacją zadań wykonywanych na podstawie porozumień (umów) między jednostkami samorządu terytorialnego w 2008 r.
J3: w złotych
A4: Dział | B4: Rozdział | C4: §* | D4: Dotacje ogółem | E4: Wydatki ogółem (6+10) | F4: z tego:
F5: Wydatki bieżące | G5: w tym: | J5: Wydatki majątkowe
G6: wynagrodzenia | H6: pochodne od wynagrodzeń | I6: dotacje
A7: 1 | B7: 2 | C7: 3 | D7: 4 | E7: 5 | F7: 6 | G7: 7 | H7: 8 | I7: 9 | J7: 10
A8: 600 | D8: 15192 | E8: 1965192 | F8: 15192 | J8: 1950000
B9: 60014
C10: 2320 | D10: 15192 | E10: 15192 | F10: 15192
C11: 6300 | D11: 0 | J11: 1950000
A21: Ogółem | E21: 1965192 | F21: 15192 | J21: 1950000
A23: (* kol. 3 do wykorzystania fakultatywnego)

Sheet 9
A1: Plan przychodów i wydatków zakładów budżetowych, gospodarstw pomocniczych
A2: oraz dochodów i wydatków rachunków dochodów własnych jednostek budżetowych na 2008 r.
K4: w złotych
A5: Lp. | B5: Wyszczególnienie | C5: Stan środków obrotowych** na początek roku | D5: Przychody* | H5: Wydatki | J5: Stan środków obrotowych** na koniec roku | K5: Rozliczenia z budżetem z tytułu wpłat nadwyżek środków za 2007 r.
D6: ogółem | E6: w tym: | H6: ogółem | I6: w tym: wpłata do budżetu
E7: dotacje z budżetu*** | F7: w tym:
F8: § 265 | G8: na inwestycje
A9: 1 | B9: 2 | C9: 3 | D9: 4 | E9: 5 | F9: 6 | G9: 7 | H9: 8 | I9: 9 | J9: 10 | K9: 11
A10: I. | B10: Zakłady budżetowe | C10: 3000 | D10: 804100 | E10: 91000 | F10: 91000 | G10: 0 | H10: 804100 | I10: 0 | J10: 3000 | K10: x
B11: z tego:
B12: 1.Wpływy z usług | D12: 713100 | E12: 91000 | K12: x
B13: 2.Wynagrodzenia | H13: 391100 | K13: x
B14: 3.Pochodne od wynagrodzeń | H14: 70190 | K14: x
B15: 4.Wydatki bieżące | H15: 342810 | K15: x
A16: II. | B16: Gospodarstwa pomocnicze | F16: x | K16: x
B17: z tego:
B18: 1. | F18: x | K18: x
B19: 2. | F19: x | K19: x
B20: 3. | F20: x | K20: x
B21: 4. | F21: x | K21: x
A22: III. | B22: Rachunki dochodów własnych jednostek budżetowych | C22: 20000 | D22: 166000 | F22: x | G22: x | H22: 160000 | I22: x | J22: 26000
B23: z tego:
B24: 1.Wpłaty za żywienie dzieci | D24: 162000 | F24: x | G24: x | I24: x
B25: 2.Wpłaty za żywienie personelu | D25: 4000 | F25: x | G25: x | I25: x
B26: 3.Zakup produktów zywnościowych | F26: x | G26: x | H26: 156000 | I26: x
B27: 4. | F27: x | G27: x | H27: 4000 | I27: x
A28: Ogółem | C28: 23000 | D28: 970100 | E28: 91000 | F28: 91000 | G28: 0 | H28: 964100 | J28: 29000
A30: W odniesieniu do dochodów własnych jednostek budżetowych:
A31: * dochody
A32: ** stan środków pieniężnych
A33: *** źródła dochodów wskazanych przez Radę

Sheet 10
A1: Dotacje przedmiotowe w 2008 r.
G3: w złotych
A4: Lp. | B4: Dział | C4: Rozdział | D4: §** | E4: Nazwa jednostki otrzymującej dotację | F4: Zakres | G4: Ogółem kwota dotacji
A7: 1 | B7: 2 | C7: 3 | D7: 4 | E7: 5 | F7: 6 | G7: 7
A8: 1 | B8: 900 | C8: 90017 | D8: 2650 | E8: Zakład Gospodarki Komunalnej w Mordach
F9: Dopłata do 1m³ ścieków z systemu kanalizacji: 42.000 m³ x1,50 zł; dowożone:2.000m³x0,30 zł | G9: 63600
F10: Dopłata do składowania odpadów na wysypisku: 1.200m³x21,50zł | G10: 25800
F11: Dopłata do wody dla odbiorców zasilanych w wodę z Gminy Łosice:8.000m³x0,2 zł | G11: 1600
A13: Ogółem | G13: 91000
A15: (** kol. 4 do wykorzystania fakultatywnego)

Sheet 11
A1: Dotacje podmiotowe* w 2008 r.
F3: w złotych
A4: Lp. | B4: Dział | C4: Rozdział | D4: §** | E4: Nazwa instytucji | F4: Kwota dotacji
A5: 1 | B5: 2 | C5: 3 | D5: 4 | E5: 5 | F5: 6
A6: 1 | B6: 921 | C6: 92109 | D6: 2480 | E6: Miejsko-Gminny Ośrodek Kultury w Mordach | F6: 135805
A7: 1 | B7: 921 | C7: 92116 | D7: 2480 | E7: Miejsko-Gminna Biblioteka Publiczna w Mordach | F7: 115600
A10: Ogółem | F10: 251405
A12: * mogą dotyczyć przedszkoli samorządowych (art. 80 ust 4 i art. 90 ust. 4 ustawy o systemie oświaty
A13: w związku z art. 106 ust. 2 pkt 2 i art. 184 ust. 1 pkt 14 ustawy o finansach publicznych)
A15: (** kol. 4 do wykorzystania fakultatywnego)

Sheet 12
A1: Dotacje celowe na zadania własne gminy realizowane przez podmioty należące i nienależące do sektora finansów publicznych w 2008 r.
F3: w złotych
A4: Lp. | B4: Dział | C4: Rozdział | D4: §* | E4: Nazwa zadania | F4: Kwota dotacji
A5: 1 | B5: 2 | C5: 3 | D5: 4 | E5: 5 | F5: 6
A10: Ogółem
A12: (* kol. 4 do wykorzystania fakultatywnego)

Sheet 13
A1: Plan przychodów i wydatków Gminnego Funduszu
A2: Ochrony Środowiska i Gospodarki Wodnej
C4: w złotych
A5: Lp. | B5: Wyszczególnienie | C5: Plan na 2008 r.
A6: I. | B6: Stan środków obrotowych na początek roku | C6: 18032
A7: II. | B7: Przychody | C7: 10000
A8: 1. | B8: 900-90011§ 069- wpływy z różnych opłat | C8: 10000
A9: 2.
A10: 3.
A11: III. | B11: Wydatki | C11: 25000
A12: 1. | B12: Wydatki bieżące
B13: 900-90011 § 4300 - zakup usług pozostałych | C13: 25000
A15: 2. | B15: Wydatki majątkowe | C15: 0
A18: IV. | B18: Stan środków obrotowych na koniec roku | C18: 3032

Sheet 14
A1: Plan przychodów i wydatków Gminnego* Funduszu
A2: Gospodarki Zasobem Geodezyjnym i Kartograficznym
C4: w złotych
A5: Lp. | B5: Wyszczególnienie | C5: Plan na 2008 r.
A6: I. | B6: Stan środków obrotowych na początek roku
A7: II. | B7: Przychody
A8: 1.
A9: 2.
A10: 3.
A11: III. | B11: Wydatki
A12: 1. | B12: Wydatki bieżące
A15: 2. | B15: Wydatki majątkowe
A18: IV. | B18: Stan środków obrotowych na koniec roku
A20: (* w przypadku przejęcia zadania na podstawie porozumienia z powiatem)

Sheet 15
A1: Wydatki jednostek pomocniczych w 2008 r.
F3: w złotych
A4: Lp. | B4: Dział | C4: Rozdział | D4: §* | E4: Nazwa jednostki pomocniczej | F4: Kwota
A5: 1 | B5: 2 | C5: 3 | D5: 4 | E5: 5 | F5: 6
A11: Ogółem
A13: (* kol. 4 do wykorzystania fakultatywnego)

Sheet 16
A1: Wykaz obowiązujących umów o partnerstwie publiczno-prywatnym
A2: Lp. | B2: Przedmiot i cel umowy | C2: Strony umowy | D2: Okres wykonywania umowy | E2: Łączna kwota wydatków, w tym wydatki budżetu | F2: Łączne kwoty wydatków w poszczególnych latach, w tym kwota wydatków budżetu
A3: 1 | B3: 2 | C3: 3 | D3: 4 | E3: 5 | F3: 6
A4: 1. | B4: Modernizacja drogi X… | C4: Urząd Gminy X-Firma Y | D4: 2008-2010 | E4: 4.500.000 zł, w tym wydatki budżetu 3.000.000 zł | F4: 2008 - 1.500.000 zł, w tym wydatki budżetu 1.000.000 zł
F5: 2009 - 1.500.000 zł, w tym wydatki budżetu 1.000.000 zł
F6: 2010 - 1.500.000 zł, w tym wydatki budżetu 1.000.000 zł
A7: 2. | B7: Modernizacja ulicy Y | C7: Urząd Gminy X-Firma X | D7: 2008-2010 | E7: 4.500.000 zł, w tym wydatki budżetu 3.000.000 zł | F7: 2008 - 1.500.000 zł, w tym wydatki budżetu 1.000.000 zł
F8: 2009 - 1.500.000 zł, w tym wydatki budżetu 1.000.000 zł
F9: 2010 - 1.500.000 zł, w tym wydatki budżetu 1.000.000 zł
A10: 3.
A11: 4.

Sheet 17
A1: Prognoza kwoty długu i spłat na rok 2008 i lata następne
I3: w złotych
A4: Lp. | B4: Wyszczególnienie | C4: Kwota długu na dzień 31.12.2007 | D4: Prognoza
D5: Umorzenie | E5: 2008 | F5: 2009 | G5: 2010 | H5: 2011 | I5: 2012
A6: 1 | B6: 2 | C6: 3 | D6: 4 | E6: 5 | F6: 6 | G6: 7 | H6: 8 | I6: 9
A7: 1. | B7: Zobowiązania wg tytułów dłużnych: (1.1+1.2+1.3)-2.1 | C7: 3967720 | E7: 6354720 | F7: 4840570 | G7: 3204486 | H7: 1489868 | I7: 0
A8: 1.1 | B8: Zaciągnięte zobowiązania (bez prefinansowania) z tytułu: | C8: 3967720 | E8: 6354720 | F8: 4840570 | G8: 3204486 | H8: 1489868 | I8: 0
A9: a | B9: pożyczek | C9: 2621534 | E9: 3064852 | F9: 2380702 | G9: 1374618 | H9: 390000 | I9: 0
A10: b | B10: kredytów | C10: 1346186 | E10: 3289868 | F10: 2459868 | G10: 1829868 | H10: 1099868 | I10: 0
A11: c | B11: obligacji | C11: 0 | D11: 0 | E11: 0 | F11: 0 | G11: 0 | H11: 0 | I11: 0
A12: 1.2 | B12: Planowane w roku budżetowym (bez prefinansowania): | C12: 0 | E12: 3605682 | F12: 0 | G12: 0 | H12: 0 | I12: 0
A13: a | B13: pożyczki | C13: 0 | E13: 1500000 | F13: 0 | G13: 0 | H13: 0 | I13: 0
A14: b | B14: kredyty, w tym: | C14: 0 | E14: 2105682 | F14: 0 | G14: 0 | H14: 0 | I14: 0
B15: EBOiR | C15: 0 | E15: 0 | F15: 0 | G15: 0 | H15: 0 | I15: 0
A16: c | B16: obligacje | C16: 0 | E16: 0 | F16: 0 | G16: 0 | H16: 0 | I16: 0
A17: 1.3 | B17: Pożyczki, kredyty i obligacje na prefinansowanie | C17: 0 | E17: 0 | F17: 0 | G17: 0 | H17: 0 | I17: 0
A18: a | B18: Zaciągnięte zobowiązania | C18: 0 | E18: 0 | F18: 0 | G18: 0 | H18: 0 | I18: 0
A19: b | B19: Planowane zobowiązania | C19: 0 | E19: 0 | F19: 0 | G19: 0 | H19: 0 | I19: 0
A20: 2 | B20: Obsługa długu (2.1+2.2+2.3) | C20: 0 | E20: 1468682 | F20: 1794150 | G20: 1836084 | H20: 1861618 | I20: 1544868
A21: 2.1 | B21: Spłata rat kapitałowych z wyłączeniem prefinansowania | C21: 0 | E21: 1218682 | F21: 1514150 | G21: 1636084 | H21: 1714618 | I21: 1489868
A22: a | B22: kredytów i pożyczek | C22: 0 | E22: 1218682 | F22: 1514150 | G22: 1636084 | H22: 1714618 | I22: 1489868
A23: b | B23: wykup papierów wartościowych | C23: 0 | E23: 0 | F23: 0 | G23: 0 | H23: 0 | I23: 0
A24: c | B24: udzielonych poręczeń | C24: 0 | E24: 0 | F24: 0 | G24: 0 | H24: 0 | I24: 0
A25: 2.2 | B25: Spłata rat kapitałowych z tytułu prefinansowania | C25: 0 | E25: 0 | F25: 0 | G25: 0 | H25: 0 | I25: 0
A26: 2.3 | B26: Spłata odsetek i dyskonta | C26: 0 | E26: 250000 | F26: 280000 | G26: 200000 | H26: 147000 | I26: 55000
A27: 3. | B27: Prognozowane dochody budżetowe | C27: 0 | E27: 11782000 | F27: 12135460 | G27: 12499500 | H27: 12874500 | I27: 13261000
A28: 4. | B28: Prognozowane wydatki budżetowe | C28: 0 | E28: 14169000 | F28: 12135460 | G28: 12499500 | H28: 12874500 | I28: 13261000
A29: 5. | B29: Prognozowany wynik finansowy | C29: 0 | E29: 2387000
A30: 6. | B30: Relacje do dochodów (w %):
A31: 6.1 | B31: długu (art. 170 ust. 1) ( 1-2.a-2.b-2.2):3 | C31: 0 | E31: 53.94 | F31: 39.89 | G31: 25.64 | H31: 11.57 | I31: 0
A32: 6.2 | B32: długu po uwzględnieniu wyłączeń (art. 170 ust. 3) (1.1+1.2-2.1.a-2.1.b):3 | C32: 0 | E32: 53.94 | F32: 39.89 | G32: 25.64 | H32: 11.57 | I32: 0
A33: 6.3 | B33: spłaty zadłużenia (art. 169 ust. 1) (2:3) | C33: 0 | E33: 12.47 | F33: 14.78 | G33: 14.69 | H33: 14.46 | I33: 11.65
A34: 6.4 | B34: spłaty zadłużenia po uwzględnieniu wyłączeń (art. 169 ust. 3) (2.1+2.3):3 | C34: 0 | E34: 12.47 | F34: 14.78 | G34: 14.69 | H34: 14.46 | I34: 11.65
